[Event "Titled Tuesday Blitz November 07 Late 2023"]
[White "Carlsen, Magnus"]
[Black "Tifferet, Shaked"]
[WhiteFideId "1503014"]
[BlackFideId "2811529"]
[WhiteElo "3268"]
[BlackElo "2513"]
[Result "1-0"]
[Round "1"]
[TimeControl "180+1"]
[Date "2023.11.07"]
[WhiteClock "0:00:48"]
[BlackClock "0:00:01"]
[Board "1"]

1. e4 {[%clk 0:02:51]}  c5 {[%clk 0:02:58]} 2. Nf3 {[%clk 0:02:47]}  d6 {[%clk 0:02:58]} 3. Bb5+ {[%clk 0:02:33]}  Bd7 {[%clk 0:02:58]} 4. a4 {[%clk 0:02:32]}  Nf6 {[%clk 0:02:56]} 5. e5 {[%clk 0:02:32]}  dxe5 {[%clk 0:02:55]} 6. Nxe5 {[%clk 0:02:33]}  Bxb5 {[%clk 0:02:36]} 7. axb5 {[%clk 0:02:13]}  Qd5 {[%clk 0:02:25]} 8. Nf3 {[%clk 0:02:11]}  Qe4+ {[%clk 0:02:21]} 9. Qe2 {[%clk 0:02:10]}  Qxe2+ {[%clk 0:02:21]} 10. Kxe2 {[%clk 0:02:10]}  Nbd7 {[%clk 0:02:18]} 11. d3 {[%clk 0:01:43]}  g6 {[%clk 0:02:11]} 12. Nc3 {[%clk 0:01:36]}  Bg7 {[%clk 0:02:10]} 13. Be3 {[%clk 0:01:24]}  O-O {[%clk 0:02:10]} 14. Ra2 {[%clk 0:01:20]}  a6 {[%clk 0:01:48]} 15. Rha1 {[%clk 0:01:16]}  Rfb8 {[%clk 0:01:36]} 16. Nd2 {[%clk 0:01:10]}  Ng4 {[%clk 0:01:26]} 17. Bf4 {[%clk 0:01:09]}  e5 {[%clk 0:01:21]} 18. Bg3 {[%clk 0:01:09]}  f5 {[%clk 0:01:05]} 19. f3 {[%clk 0:01:07]}  Ngf6 {[%clk 0:01:02]} 20. Nc4 {[%clk 0:01:07]}  Nh5 {[%clk 0:01:00]} 21. bxa6 {[%clk 0:01:07]}  Rxa6 {[%clk 0:00:59]} 22. Rxa6 {[%clk 0:01:08]}  bxa6 {[%clk 0:01:00]} 23. Rxa6 {[%clk 0:01:08]}  Re8 {[%clk 0:00:32]} 24. Ra7 {[%clk 0:01:03]}  Nb8 {[%clk 0:00:27]} 25. Rc7 {[%clk 0:01:02]}  Na6 {[%clk 0:00:23]} 26. Ra7 {[%clk 0:00:58]}  Nb4 {[%clk 0:00:23]} 27. Kd1 {[%clk 0:00:58]}  Nxg3 {[%clk 0:00:20]} 28. hxg3 {[%clk 0:00:58]}  e4 {[%clk 0:00:20]} 29. fxe4 {[%clk 0:00:58]}  fxe4 {[%clk 0:00:11]} 30. Nxe4 {[%clk 0:00:57]}  Rf8 {[%clk 0:00:11]} 31. Kd2 {[%clk 0:00:50]}  Rf1 {[%clk 0:00:11]} 32. c3 {[%clk 0:00:48]}  Bh6+ {[%clk 0:00:08]} 33. Ke2 {[%clk 0:00:48]}  Rb1 {[%clk 0:00:01]} 34. Nf6+ {[%clk 0:00:48]} 1-0


[Site "https://www.chess.com"]

[Event "Titled Tuesday Blitz November 07 Late 2023"]
[White "Keleberda, Tymur"]
[Black "Jacobson, Brandon"]
[WhiteFideId "14174294"]
[BlackFideId "30901561"]
[WhiteElo "2512"]
[BlackElo "3129"]
[Result "0-1"]
[Round "1"]
[TimeControl "180+1"]
[Date "2023.11.07"]
[WhiteClock "0:00:00"]
[BlackClock "0:00:05"]
[Board "2"]

1. e4 {[%clk 0:03:00]}  c5 {[%clk 0:02:59]} 2. Nf3 {[%clk 0:03:00]}  Nc6 {[%clk 0:03:00]} 3. Bb5 {[%clk 0:02:59]}  e6 {[%clk 0:03:00]} 4. O-O {[%clk 0:02:58]}  Nge7 {[%clk 0:03:00]} 5. Re1 {[%clk 0:02:57]}  a6 {[%clk 0:02:58]} 6. Bf1 {[%clk 0:02:57]}  d5 {[%clk 0:02:54]} 7. exd5 {[%clk 0:02:57]}  Nxd5 {[%clk 0:02:55]} 8. d4 {[%clk 0:02:56]}  Nf6 {[%clk 0:02:53]} 9. c3 {[%clk 0:02:44]}  cxd4 {[%clk 0:02:52]} 10. cxd4 {[%clk 0:02:43]}  Be7 {[%clk 0:02:51]} 11. Nc3 {[%clk 0:02:42]}  O-O {[%clk 0:02:51]} 12. Bf4 {[%clk 0:02:34]}  b5 {[%clk 0:02:49]} 13. Rc1 {[%clk 0:02:19]}  Bb7 {[%clk 0:02:50]} 14. g3 {[%clk 0:02:17]}  Rc8 {[%clk 0:02:38]} 15. Bg2 {[%clk 0:02:16]}  Nb4 {[%clk 0:02:36]} 16. Qd2 {[%clk 0:02:06]}  Nbd5 {[%clk 0:02:20]} 17. Be5 {[%clk 0:02:04]}  Nxc3 {[%clk 0:02:03]} 18. bxc3 {[%clk 0:02:02]}  Nd5 {[%clk 0:02:04]} 19. h4 {[%clk 0:01:56]}  h6 {[%clk 0:02:01]} 20. Rc2 {[%clk 0:01:48]}  Rc4 {[%clk 0:01:47]} 21. Bf4 {[%clk 0:01:29]}  Nxf4 {[%clk 0:00:56]} 22. Qxf4 {[%clk 0:01:30]}  Bd6 {[%clk 0:00:56]} 23. Qe3 {[%clk 0:01:20]}  Qc7 {[%clk 0:00:46]} 24. Nd2 {[%clk 0:01:18]}  Ra4 {[%clk 0:00:43]} 25. Bxb7 {[%clk 0:01:14]}  Qxb7 {[%clk 0:00:44]} 26. c4 {[%clk 0:01:05]}  Bb4 {[%clk 0:00:44]} 27. Rb1 {[%clk 0:01:04]}  Rd8 {[%clk 0:00:37]} 28. Nf3 {[%clk 0:00:58]}  bxc4 {[%clk 0:00:26]} 29. Rxc4 {[%clk 0:00:52]}  a5 {[%clk 0:00:26]} 30. a3 {[%clk 0:00:51]}  Qd5 {[%clk 0:00:26]} 31. Ne5 {[%clk 0:00:34]}  Rxa3 {[%clk 0:00:22]} 32. Qf4 {[%clk 0:00:29]}  f6 {[%clk 0:00:23]} 33. Rc7 {[%clk 0:00:24]}  Bd6 {[%clk 0:00:15]} 34. Rxg7+ {[%clk 0:00:21]}  Kxg7 {[%clk 0:00:15]} 35. Qg4+ {[%clk 0:00:20]}  Kf8 {[%clk 0:00:15]} 36. Qg6 {[%clk 0:00:11]}  fxe5 {[%clk 0:00:10]} 37. Qxh6+ {[%clk 0:00:08]}  Ke8 {[%clk 0:00:11]} 38. Qg6+ {[%clk 0:00:08]}  Kd7 {[%clk 0:00:11]} 39. dxe5 {[%clk 0:00:06]}  Rb8 {[%clk 0:00:07]} 40. Rc1 {[%clk 0:00:03]}  Bc5 {[%clk 0:00:05]} 41. Qc2 {[%clk 0:00:03]}  Rxg3+ {[%clk 0:00:04]} 42. Kf1 {[%clk 0:00:03]}  Qg2+ {[%clk 0:00:05]} 43. Ke2 {[%clk 0:00:00]}  Qxf2+ {[%clk 0:00:05]} 0-1


[Site "https://www.chess.com"]

[Event "Titled Tuesday Blitz November 07 Late 2023"]
[White "Pranav, V"]
[Black "Rangel, Daniel"]
[WhiteFideId "25060783"]
[BlackFideId "2124475"]
[WhiteElo "3063"]
[BlackElo "2509"]
[Result "1-0"]
[Round "1"]
[TimeControl "180+1"]
[Date "2023.11.07"]
[WhiteClock "0:02:31"]
[BlackClock "0:01:17"]
[Board "7"]

1. e4 {[%clk 0:03:00]}  c5 {[%clk 0:02:59]} 2. Nf3 {[%clk 0:03:00]}  g6 {[%clk 0:03:00]} 3. d4 {[%clk 0:03:00]}  cxd4 {[%clk 0:03:01]} 4. Qxd4 {[%clk 0:03:00]}  Nf6 {[%clk 0:03:01]} 5. Bb5 {[%clk 0:03:01]}  Nc6 {[%clk 0:02:58]} 6. Bxc6 {[%clk 0:03:01]}  bxc6 {[%clk 0:02:59]} 7. Nc3 {[%clk 0:02:53]}  Bg7 {[%clk 0:02:58]} 8. e5 {[%clk 0:02:53]}  Ng8 {[%clk 0:02:56]} 9. O-O {[%clk 0:02:52]}  Nh6 {[%clk 0:02:56]} 10. Bxh6 {[%clk 0:02:50]}  Bxh6 {[%clk 0:02:54]} 11. e6 {[%clk 0:02:50]}  f6 {[%clk 0:02:55]} 12. exd7+ {[%clk 0:02:50]}  Qxd7 {[%clk 0:02:53]} 13. Qc4 {[%clk 0:02:49]}  Qe6 {[%clk 0:02:49]} 14. Qa4 {[%clk 0:02:48]}  O-O {[%clk 0:02:43]} 15. Rfe1 {[%clk 0:02:48]}  Qd7 {[%clk 0:02:43]} 16. Rad1 {[%clk 0:02:46]}  Qc7 {[%clk 0:02:42]} 17. Qc4+ {[%clk 0:02:44]}  Kh8 {[%clk 0:01:55]} 18. Nd5 {[%clk 0:02:41]}  Qb7 {[%clk 0:01:48]} 19. Nxe7 {[%clk 0:02:39]}  Qxb2 {[%clk 0:01:46]} 20. Qh4 {[%clk 0:02:34]}  Kg7 {[%clk 0:01:33]} 21. Nxc8 {[%clk 0:02:33]}  g5 {[%clk 0:01:23]} 22. Rd7+ {[%clk 0:02:30]}  Kg6 {[%clk 0:01:22]} 23. Ne7+ {[%clk 0:02:30]}  Kf7 {[%clk 0:01:20]} 24. Nf5+ {[%clk 0:02:30]}  Kg6 {[%clk 0:01:19]} 25. Qxh6+ {[%clk 0:02:30]}  Kxf5 {[%clk 0:01:19]} 26. Qxh7+ {[%clk 0:02:30]}  Kf4 {[%clk 0:01:17]} 27. Re4# {[%clk 0:02:31]} 1-0


[Site "https://www.chess.com"]

[Event "Titled Tuesday Blitz November 07 Late 2023"]
[White "Pasti, Aron"]
[Black "Firouzja, Alireza"]
[WhiteFideId "785857"]
[BlackFideId "12573981"]
[WhiteElo "2507"]
[BlackElo "3061"]
[Result "0-1"]
[Round "1"]
[TimeControl "180+1"]
[Date "2023.11.07"]
[WhiteClock "0:01:13"]
[BlackClock "0:02:10"]
[Board "8"]

1. e4 {[%clk 0:03:00]}  a6 {[%clk 0:02:59]} 2. d4 {[%clk 0:02:59]}  c6 {[%clk 0:03:00]} 3. Nf3 {[%clk 0:02:59]}  d5 {[%clk 0:03:01]} 4. Nc3 {[%clk 0:02:59]}  dxe4 {[%clk 0:03:01]} 5. Nxe4 {[%clk 0:03:00]}  Bf5 {[%clk 0:03:00]} 6. Ng3 {[%clk 0:03:01]}  Bg6 {[%clk 0:03:00]} 7. h4 {[%clk 0:03:01]}  h6 {[%clk 0:03:00]} 8. h5 {[%clk 0:03:01]}  Bh7 {[%clk 0:02:59]} 9. Bd3 {[%clk 0:03:02]}  Bxd3 {[%clk 0:02:59]} 10. Qxd3 {[%clk 0:03:03]}  e6 {[%clk 0:03:00]} 11. Bd2 {[%clk 0:03:03]}  Nf6 {[%clk 0:03:00]} 12. O-O-O {[%clk 0:03:03]}  Nbd7 {[%clk 0:03:01]} 13. Ne4 {[%clk 0:02:58]}  Nxe4 {[%clk 0:03:00]} 14. Qxe4 {[%clk 0:02:59]}  Nf6 {[%clk 0:03:01]} 15. Qe2 {[%clk 0:02:59]}  Qd5 {[%clk 0:03:01]} 16. c4 {[%clk 0:02:57]}  Qe4 {[%clk 0:02:59]} 17. Qxe4 {[%clk 0:02:56]}  Nxe4 {[%clk 0:02:59]} 18. Be3 {[%clk 0:02:57]}  Be7 {[%clk 0:03:00]} 19. Ne5 {[%clk 0:02:56]}  Rd8 {[%clk 0:02:55]} 20. f3 {[%clk 0:02:56]}  Ng3 {[%clk 0:02:53]} 21. Rh3 {[%clk 0:02:53]}  Nf5 {[%clk 0:02:53]} 22. Bf2 {[%clk 0:02:54]}  Bg5+ {[%clk 0:02:53]} 23. Kc2 {[%clk 0:02:53]}  Be3 {[%clk 0:02:53]} 24. Rf1 {[%clk 0:02:41]}  Rxd4 {[%clk 0:02:50]} 25. Bxe3 {[%clk 0:02:39]}  Nxe3+ {[%clk 0:02:49]} 26. Kc3 {[%clk 0:02:40]}  Nxf1 {[%clk 0:02:43]} 27. Kxd4 {[%clk 0:02:40]}  Ke7 {[%clk 0:02:44]} 28. Kc5 {[%clk 0:02:34]}  Rd8 {[%clk 0:02:32]} 29. Kb6 {[%clk 0:02:34]}  Rd2 {[%clk 0:02:31]} 30. b4 {[%clk 0:02:32]}  f6 {[%clk 0:02:25]} 31. Ng6+ {[%clk 0:02:28]}  Kd6 {[%clk 0:02:25]} 32. c5+ {[%clk 0:02:23]}  Kd7 {[%clk 0:02:25]} 33. Nf8+ {[%clk 0:02:18]}  Ke7 {[%clk 0:02:25]} 34. Ng6+ {[%clk 0:02:18]}  Kf7 {[%clk 0:02:26]} 35. Kxb7 {[%clk 0:02:18]}  Rxa2 {[%clk 0:02:26]} 36. Kxc6 {[%clk 0:02:18]}  Ne3 {[%clk 0:02:26]} 37. Rh4 {[%clk 0:02:14]}  Rxg2 {[%clk 0:02:20]} 38. Rd4 {[%clk 0:02:13]}  Nd5 {[%clk 0:02:20]} 39. Kd7 {[%clk 0:02:10]}  Rc2 {[%clk 0:02:17]} 40. c6 {[%clk 0:02:08]}  Nb6+ {[%clk 0:02:15]} 41. Kc7 {[%clk 0:02:06]}  Nd5+ {[%clk 0:02:14]} 42. Kb7 {[%clk 0:01:57]}  f5 {[%clk 0:02:11]} 43. Nf4 {[%clk 0:01:57]}  Ne7 {[%clk 0:02:09]} 44. c7 {[%clk 0:01:55]}  e5 {[%clk 0:02:09]} 45. Rd7 {[%clk 0:01:17]}  exf4 {[%clk 0:02:09]} 46. Kxa6 {[%clk 0:01:16]}  Ke6 {[%clk 0:02:09]} 47. Rxe7+ {[%clk 0:01:13]}  Kxe7 {[%clk 0:02:10]} 0-1


[Site "https://www.chess.com"]

[Event "Titled Tuesday Blitz November 07 Late 2023"]
[White "Xiong, Jeffery"]
[Black "Silva, Caio Henrique Angelico"]
[WhiteFideId "2047640"]
[BlackFideId "22777210"]
[WhiteElo "3030"]
[BlackElo "2504"]
[Result "0-1"]
[Round "1"]
[TimeControl "180+1"]
[Date "2023.11.07"]
[WhiteClock "0:00:32"]
[BlackClock "0:00:54"]
[Board "11"]

1. e4 {[%clk 0:03:00]}  c6 {[%clk 0:02:58]} 2. Nf3 {[%clk 0:03:00]}  d5 {[%clk 0:02:59]} 3. d3 {[%clk 0:03:01]}  Qc7 {[%clk 0:02:56]} 4. exd5 {[%clk 0:03:00]}  cxd5 {[%clk 0:02:57]} 5. c4 {[%clk 0:03:00]}  dxc4 {[%clk 0:02:57]} 6. dxc4 {[%clk 0:03:01]}  Nf6 {[%clk 0:02:56]} 7. Nc3 {[%clk 0:03:01]}  a6 {[%clk 0:02:55]} 8. g3 {[%clk 0:03:00]}  Nc6 {[%clk 0:02:54]} 9. Bg2 {[%clk 0:02:49]}  Bg4 {[%clk 0:02:51]} 10. Qa4 {[%clk 0:02:00]}  e6 {[%clk 0:02:46]} 11. Bf4 {[%clk 0:01:58]}  Bd6 {[%clk 0:02:37]} 12. Bxd6 {[%clk 0:01:57]}  Qxd6 {[%clk 0:02:38]} 13. Rd1 {[%clk 0:01:57]}  Qc5 {[%clk 0:02:35]} 14. h3 {[%clk 0:01:56]}  Bh5 {[%clk 0:02:32]} 15. g4 {[%clk 0:01:56]}  Bg6 {[%clk 0:02:32]} 16. Nd4 {[%clk 0:01:56]}  Qe5+ {[%clk 0:02:26]} 17. Nce2 {[%clk 0:01:54]}  O-O {[%clk 0:02:25]} 18. f4 {[%clk 0:01:45]}  Qc5 {[%clk 0:02:01]} 19. Nxc6 {[%clk 0:01:13]}  bxc6 {[%clk 0:02:02]} 20. Qxc6 {[%clk 0:01:14]}  Qb4+ {[%clk 0:01:59]} 21. Rd2 {[%clk 0:01:14]}  Rad8 {[%clk 0:01:55]} 22. Bd5 {[%clk 0:01:06]}  exd5 {[%clk 0:01:42]} 23. a3 {[%clk 0:01:06]}  Qe7 {[%clk 0:01:38]} 24. f5 {[%clk 0:01:06]}  Ne4 {[%clk 0:01:32]} 25. fxg6 {[%clk 0:00:54]}  Qh4+ {[%clk 0:01:26]} 26. Kd1 {[%clk 0:00:54]}  Nf2+ {[%clk 0:01:21]} 27. Kc2 {[%clk 0:00:54]}  Nxh1 {[%clk 0:01:21]} 28. gxf7+ {[%clk 0:00:52]}  Kh8 {[%clk 0:01:20]} 29. Rxd5 {[%clk 0:00:51]}  Rc8 {[%clk 0:01:19]} 30. Qxa6 {[%clk 0:00:50]}  Qf2 {[%clk 0:01:14]} 31. Re5 {[%clk 0:00:49]}  Qxf7 {[%clk 0:01:09]} 32. Kb3 {[%clk 0:00:49]}  Nf2 {[%clk 0:01:07]} 33. Qe6 {[%clk 0:00:46]}  Qxe6 {[%clk 0:00:58]} 34. Rxe6 {[%clk 0:00:47]}  Nd3 {[%clk 0:00:58]} 35. Re3 {[%clk 0:00:44]}  Rb8+ {[%clk 0:00:57]} 36. Kc3 {[%clk 0:00:38]}  Nxb2 {[%clk 0:00:57]} 37. Re7 {[%clk 0:00:38]}  Rf3+ {[%clk 0:00:56]} 38. Kd4 {[%clk 0:00:35]}  Rd3+ {[%clk 0:00:56]} 39. Ke4 {[%clk 0:00:32]}  Rd2 {[%clk 0:00:54]} 0-1


[Site "https://www.chess.com"]

[Event "Titled Tuesday Blitz November 07 Late 2023"]
[White "JackRodgers"]
[Black "Elsa167"]
[WhiteElo "2496"]
[BlackElo "2980"]
[Result "1/2-1/2"]
[Round "1"]
[TimeControl "180+1"]
[Date "2023.11.07"]
[WhiteClock "0:00:05"]
[BlackClock "0:00:05"]
[Board "16"]

1. d4 {[%clk 0:03:00]}  Nf6 {[%clk 0:02:57]} 2. Bg5 {[%clk 0:02:57]}  e6 {[%clk 0:02:55]} 3. e4 {[%clk 0:02:57]}  h6 {[%clk 0:02:55]} 4. Bxf6 {[%clk 0:02:57]}  Qxf6 {[%clk 0:02:56]} 5. Nf3 {[%clk 0:02:58]}  d5 {[%clk 0:02:52]} 6. Nc3 {[%clk 0:02:56]}  Bb4 {[%clk 0:02:50]} 7. Bd3 {[%clk 0:02:56]}  c5 {[%clk 0:02:40]} 8. exd5 {[%clk 0:02:42]}  cxd4 {[%clk 0:02:34]} 9. Bb5+ {[%clk 0:02:15]}  Bd7 {[%clk 0:02:19]} 10. Bxd7+ {[%clk 0:02:14]}  Nxd7 {[%clk 0:02:19]} 11. Qxd4 {[%clk 0:02:14]}  Qxd4 {[%clk 0:02:17]} 12. Nxd4 {[%clk 0:02:14]}  Bxc3+ {[%clk 0:02:15]} 13. bxc3 {[%clk 0:02:15]}  exd5 {[%clk 0:02:16]} 14. O-O-O {[%clk 0:02:11]}  O-O-O {[%clk 0:01:38]} 15. Rhe1 {[%clk 0:02:07]}  Nf6 {[%clk 0:01:30]} 16. f3 {[%clk 0:01:52]}  a6 {[%clk 0:01:12]} 17. Re7 {[%clk 0:01:35]}  Rd7 {[%clk 0:01:05]} 18. Rde1 {[%clk 0:01:35]}  g6 {[%clk 0:00:54]} 19. Kd2 {[%clk 0:01:26]}  Kd8 {[%clk 0:00:52]} 20. R7e5 {[%clk 0:01:10]}  Re8 {[%clk 0:00:49]} 21. g4 {[%clk 0:01:04]}  Rxe5 {[%clk 0:00:45]} 22. Rxe5 {[%clk 0:01:05]}  Kc7 {[%clk 0:00:37]} 23. h4 {[%clk 0:01:04]}  Kd6 {[%clk 0:00:38]} 24. Re1 {[%clk 0:01:00]}  Rd8 {[%clk 0:00:33]} 25. h5 {[%clk 0:00:53]}  Re8 {[%clk 0:00:27]} 26. hxg6 {[%clk 0:00:37]}  fxg6 {[%clk 0:00:25]} 27. Rb1 {[%clk 0:00:30]}  Kc7 {[%clk 0:00:21]} 28. Rh1 {[%clk 0:00:27]}  h5 {[%clk 0:00:14]} 29. gxh5 {[%clk 0:00:28]}  gxh5 {[%clk 0:00:15]} 30. Rg1 {[%clk 0:00:24]}  Rh8 {[%clk 0:00:15]} 31. Rg6 {[%clk 0:00:20]}  Nd7 {[%clk 0:00:10]} 32. Ne6+ {[%clk 0:00:19]}  Kb8 {[%clk 0:00:10]} 33. Nf4 {[%clk 0:00:19]}  Ne5 {[%clk 0:00:08]} 34. Rg3 {[%clk 0:00:14]}  h4 {[%clk 0:00:09]} 35. Rh3 {[%clk 0:00:14]}  Rf8 {[%clk 0:00:08]} 36. Nxd5 {[%clk 0:00:12]}  Rd8 {[%clk 0:00:08]} 37. c4 {[%clk 0:00:11]}  Nxc4+ {[%clk 0:00:08]} 38. Kc3 {[%clk 0:00:11]}  Ne5 {[%clk 0:00:06]} 39. Nb4 {[%clk 0:00:09]}  Rc8+ {[%clk 0:00:05]} 40. Kb2 {[%clk 0:00:08]}  Ng6 {[%clk 0:00:04]} 41. Nd3 {[%clk 0:00:08]}  Rf8 {[%clk 0:00:04]} 42. f4 {[%clk 0:00:08]}  Rf5 {[%clk 0:00:04]} 43. Kc3 {[%clk 0:00:08]}  Kc7 {[%clk 0:00:05]} 44. a4 {[%clk 0:00:08]}  Kd6 {[%clk 0:00:05]} 45. Kd2 {[%clk 0:00:08]}  Ke6 {[%clk 0:00:05]} 46. Ke3 {[%clk 0:00:09]}  Kf6 {[%clk 0:00:05]} 47. Kf3 {[%clk 0:00:08]}  Ra5 {[%clk 0:00:06]} 48. Kg4 {[%clk 0:00:04]}  Rxa4 {[%clk 0:00:06]} 49. Rh1 {[%clk 0:00:04]}  b5 {[%clk 0:00:05]} 50. Re1 {[%clk 0:00:03]}  Rc4 {[%clk 0:00:04]} 51. Ra1 {[%clk 0:00:02]}  Rc6 {[%clk 0:00:03]} 52. Ra2 {[%clk 0:00:01]}  Rd6 {[%clk 0:00:02]} 53. Ra1 {[%clk 0:00:02]}  Kg7 {[%clk 0:00:02]} 54. Ra2 {[%clk 0:00:03]}  Rc6 {[%clk 0:00:02]} 55. f5 {[%clk 0:00:03]}  Rc4+ {[%clk 0:00:02]} 56. Kg5 {[%clk 0:00:04]}  Ne7 {[%clk 0:00:02]} 57. Ra1 {[%clk 0:00:03]}  Nd5 {[%clk 0:00:03]} 58. Ne5 {[%clk 0:00:03]}  Rxc2 {[%clk 0:00:03]} 59. Kxh4 {[%clk 0:00:03]}  Kf6 {[%clk 0:00:02]} 60. Ng4+ {[%clk 0:00:02]}  Kxf5 {[%clk 0:00:02]} 61. Rf1+ {[%clk 0:00:02]}  Ke4 {[%clk 0:00:02]} 62. Ra1 {[%clk 0:00:02]}  Nb4 {[%clk 0:00:01]} 63. Re1+ {[%clk 0:00:02]}  Kd4 {[%clk 0:00:01]} 64. Re8 {[%clk 0:00:03]}  Kc4 {[%clk 0:00:02]} 65. Ne3+ {[%clk 0:00:02]}  Kb3 {[%clk 0:00:02]} 66. Nxc2 {[%clk 0:00:03]}  Kxc2 {[%clk 0:00:03]} 67. Kg3 {[%clk 0:00:04]}  a5 {[%clk 0:00:03]} 68. Rb8 {[%clk 0:00:03]}  a4 {[%clk 0:00:03]} 69. Rxb5 {[%clk 0:00:04]}  Nd3 {[%clk 0:00:04]} 70. Ra5 {[%clk 0:00:04]}  Kb3 {[%clk 0:00:04]} 71. Rxa4 {[%clk 0:00:05]}  Kxa4 {[%clk 0:00:05]} 1/2-1/2


[Site "https://www.chess.com"]

[Event "Titled Tuesday Blitz November 07 Late 2023"]
[White "Deac, Bogdan-Daniel"]
[Black "Nilsen, Tobias Lang"]
[WhiteFideId "1226380"]
[BlackFideId "1521624"]
[WhiteElo "2976"]
[BlackElo "2496"]
[Result "1-0"]
[Round "1"]
[TimeControl "180+1"]
[Date "2023.11.07"]
[WhiteClock "0:00:10"]
[BlackClock "0:00:11"]
[Board "17"]

1. b3 {[%clk 0:03:00]}  e5 {[%clk 0:02:59]} 2. Bb2 {[%clk 0:03:01]}  Nc6 {[%clk 0:03:00]} 3. Nf3 {[%clk 0:03:01]}  e4 {[%clk 0:03:01]} 4. Nd4 {[%clk 0:03:01]}  Nxd4 {[%clk 0:03:01]} 5. Bxd4 {[%clk 0:03:02]}  d5 {[%clk 0:03:02]} 6. e3 {[%clk 0:03:02]}  Nf6 {[%clk 0:03:02]} 7. c4 {[%clk 0:03:02]}  c6 {[%clk 0:03:02]} 8. Nc3 {[%clk 0:03:01]}  Be6 {[%clk 0:03:01]} 9. cxd5 {[%clk 0:03:00]}  cxd5 {[%clk 0:03:01]} 10. Bb5+ {[%clk 0:02:56]}  Nd7 {[%clk 0:02:57]} 11. f3 {[%clk 0:02:51]}  exf3 {[%clk 0:02:51]} 12. Qxf3 {[%clk 0:02:50]}  a6 {[%clk 0:02:51]} 13. Bd3 {[%clk 0:02:48]}  Bc5 {[%clk 0:02:32]} 14. Bxg7 {[%clk 0:02:38]}  Rg8 {[%clk 0:02:32]} 15. Bd4 {[%clk 0:02:37]}  Bxd4 {[%clk 0:02:31]} 16. exd4 {[%clk 0:02:37]}  Qh4+ {[%clk 0:02:26]} 17. Qf2 {[%clk 0:02:36]}  Qh5 {[%clk 0:01:46]} 18. Ne2 {[%clk 0:02:27]}  O-O-O {[%clk 0:01:38]} 19. Nf4 {[%clk 0:02:25]}  Qh6 {[%clk 0:01:31]} 20. O-O-O {[%clk 0:02:12]}  Kb8 {[%clk 0:01:19]} 21. Kb2 {[%clk 0:02:09]}  Qf6 {[%clk 0:01:14]} 22. Rhf1 {[%clk 0:02:02]}  h6 {[%clk 0:01:08]} 23. Rde1 {[%clk 0:01:58]}  Nc5 {[%clk 0:00:54]} 24. Bc2 {[%clk 0:01:56]}  Ne4 {[%clk 0:00:47]} 25. Qe3 {[%clk 0:01:26]}  Qh4 {[%clk 0:00:41]} 26. Bxe4 {[%clk 0:00:50]}  dxe4 {[%clk 0:00:42]} 27. h3 {[%clk 0:00:49]}  Qf6 {[%clk 0:00:25]} 28. Nxe6 {[%clk 0:00:47]}  Qxe6 {[%clk 0:00:25]} 29. g4 {[%clk 0:00:47]}  Rge8 {[%clk 0:00:24]} 30. Qf4+ {[%clk 0:00:37]}  Qd6 {[%clk 0:00:24]} 31. Qxd6+ {[%clk 0:00:35]}  Rxd6 {[%clk 0:00:24]} 32. Rxf7 {[%clk 0:00:34]}  Rxd4 {[%clk 0:00:24]} 33. Rf2 {[%clk 0:00:33]}  Rd3 {[%clk 0:00:21]} 34. Re3 {[%clk 0:00:27]}  Red8 {[%clk 0:00:19]} 35. Rxd3 {[%clk 0:00:23]}  Rxd3 {[%clk 0:00:20]} 36. h4 {[%clk 0:00:23]}  Rg3 {[%clk 0:00:20]} 37. Rf4 {[%clk 0:00:20]}  e3 {[%clk 0:00:19]} 38. dxe3 {[%clk 0:00:19]}  Rxe3 {[%clk 0:00:19]} 39. Rf6 {[%clk 0:00:17]}  Rg3 {[%clk 0:00:19]} 40. Rg6 {[%clk 0:00:16]}  Kc7 {[%clk 0:00:19]} 41. a4 {[%clk 0:00:15]}  a5 {[%clk 0:00:19]} 42. h5 {[%clk 0:00:13]}  Kd7 {[%clk 0:00:18]} 43. Kc2 {[%clk 0:00:12]}  Ke7 {[%clk 0:00:13]} 44. Rb6 {[%clk 0:00:09]}  Rxg4 {[%clk 0:00:13]} 45. Rxb7+ {[%clk 0:00:09]}  Kf6 {[%clk 0:00:13]} 46. Rb6+ {[%clk 0:00:10]}  Kg5 {[%clk 0:00:13]} 47. Rb5+ {[%clk 0:00:10]}  Kh4 {[%clk 0:00:14]} 48. Rxa5 {[%clk 0:00:10]}  Rg5 {[%clk 0:00:11]} 49. Rxg5 {[%clk 0:00:10]}  Kxg5 {[%clk 0:00:11]} 50. a5 {[%clk 0:00:10]} 1-0


[Site "https://www.chess.com"]